fUSD/lending_fUSD_20260517
["ID","MTS","AMOUNT","RATE_DAILY","PERIOD"]
[422501354,1779000653000,-721.44251026,0.00040412,2]
[422501344,1779000653000,-236.6981167,0.00040412,60]
[422501355,1779000653000,-694.33559443,0.00040412,30]
[422501345,1779000653000,-1500.0,0.00040412,10]
[422501346,1779000653000,-163.75200715,0.00040412,30]
[422501322,1779000653000,-272.1343,0.00037213,2]
[422501339,1779000653000,-181.34053925,0.00040412,120]
[422501320,1779000653000,-467.0,0.00036712,2]
[422501312,1779000653000,-8673.81,0.00036349,10]
[422501319,1779000653000,-1025.0,0.00036712,2]
[422501295,1779000653000,-503.0,0.00030992,6]
[422501296,1779000653000,-503.0,0.00031542,6]
[422501297,1779000653000,-503.0,0.00032093,7]
[422501302,1779000653000,-503.0,0.00033745,9]
[422501304,1779000653000,-450.0,0.00034208,30]
[422501301,1779000653000,-378.0,0.00033683,120]
[422501303,1779000653000,-450.0,0.00034208,30]
[422501299,1779000653000,-503.0,0.00033194,8]
[422501298,1779000653000,-503.0,0.00032644,8]
[422501300,1779000653000,-250.0,0.00033683,120]
[422501305,1779000653000,-450.0,0.00034208,30]
[422501307,1779000653000,-450.0,0.00034208,30]
[422501308,1779000653000,-438.0,0.00034208,30]
[422501313,1779000653000,-568.95771282,0.0003636,2]
[422501309,1779000653000,-6055.0,0.00034223,2]
[422501306,1779000653000,-450.0,0.00034208,30]
[422501310,1779000653000,-503.0,0.00034296,9]
[422501311,1779000653000,-272.1343,0.00036305,2]
[422501315,1779000653000,-300.0,0.0003636,2]
[422501314,1779000653000,-300.0,0.0003636,2]
[422501316,1779000653000,-300.0,0.0003636,2]
[422501318,1779000653000,-467.0,0.00036712,2]
[422501328,1779000653000,-4379.21967595,0.00040412,2]
[422501330,1779000653000,-14679.27349682,0.00040412,30]
[422501329,1779000653000,-318.50034067,0.00040412,2]
[422501317,1779000653000,-1095.24427681,0.0003636,2]
[422501348,1779000653000,-397.0,0.00040412,120]
[422501373,1779000653000,-2775.81146996,0.00040412,2]
[422501349,1779000653000,-227.25898422,0.00040412,30]
[422501382,1779000653000,-150.12884668,0.00040412,30]
[422501385,1779000653000,-547.05440146,0.00040412,30]
[422501381,1779000653000,-166.13686416,0.00040412,120]
[422501386,1779000653000,-7020.87424269,0.00040412,120]
[422501392,1779000653000,-2990.59417629,0.00040412,30]
[422501388,1779000653000,-153.76297212,0.00040412,120]
[422501391,1779000653000,-188.48923343,0.00040412,120]
[422501390,1779000653000,-444.37112195,0.00040412,120]
[422501389,1779000653000,-268.52534949,0.00040412,120]
[422501383,1779000653000,-1560.28514912,0.00040412,30]
[422501403,1779000653000,-151.06874556,0.00040412,60]
[422501395,1779000653000,-777.43393398,0.00040412,30]
[422501393,1779000653000,-168.34012225,0.00040412,30]
[422501396,1779000653000,-1153.42450604,0.00040412,30]
[422501404,1779000653000,-1839.78661444,0.00040412,2]
[422501397,1779000653000,-360.58343651,0.00040412,120]
[422501401,1779000653000,-530.58660747,0.00040412,30]
[422501400,1779000653000,-416.48791528,0.00040412,30]
[422501398,1779000653000,-182.75479758,0.00040412,30]
[422501399,1779000653000,-502.25481075,0.00040412,120]
[422501402,1779000653000,-223.50874349,0.00040412,120]
[422501406,1779000653000,-8789.77866199,0.00040412,120]
[422501407,1779000653000,-1152.44735806,0.00040412,120]
[422501352,1779000653000,-280.7145327,0.00040412,60]
[422501405,1779000653000,-269.18926281,0.00040412,30]
[422501387,1779000653000,-1623.86700537,0.00040412,90]
[422501384,1779000653000,-223.23934273,0.00040412,30]
[422501394,1779000653000,-158.30813355,0.00040412,30]
[422501376,1779000653000,-187.79429231,0.00040412,90]
[422501350,1779000653000,-405.33864314,0.00040412,120]
[422501353,1779000653000,-33116.51212152,0.00040412,30]
[422501379,1779000653000,-322.97732946,0.00040412,60]
[422501351,1779000653000,-191.72459941,0.00040412,91]
[422501363,1779000653000,-992.1595723,0.00040412,2]
[422501364,1779000653000,-1560.25550401,0.00040412,2]
[422501360,1779000653000,-220.30523499,0.00040412,120]
[422501361,1779000653000,-898.27917414,0.00040412,30]
[422501356,1779000653000,-16348.95100961,0.00040412,20]
[422501358,1779000653000,-357.45625575,0.00040412,2]
[422501365,1779000653000,-1056.6648868,0.00040412,2]
[422501362,1779000653000,-1078.81070581,0.00040412,30]
[422501366,1779000653000,-5329.17712753,0.00040412,2]
[422501359,1779000653000,-2876.35414342,0.00040412,2]
[422501357,1779000653000,-332.94717119,0.00040412,30]
[422501378,1779000653000,-9037.49363968,0.00040412,30]
[422501375,1779000653000,-1665.13383581,0.00040412,60]
[422501367,1779000653000,-503.76420896,0.00040412,2]
[422501374,1779000653000,-178318.06207037,0.00040412,2]
[422501372,1779000653000,-2023.68869602,0.00040412,2]
[422501369,1779000653000,-2443.39933235,0.00040412,120]
[422501377,1779000653000,-448.8592641,0.00040412,120]
[422501380,1779000653000,-704.39084441,0.00040412,120]
[422501371,1779000653000,-165.71118725,0.00040412,120]
[422501368,1779000653000,-1527.78483184,0.00040412,2]
[422501370,1779000653000,-2522.58322418,0.00040412,2]
[422501435,1779000654000,-158.15843882,0.00040412,90]
[422501449,1779000654000,-1000.0,0.00040412,120]
[422501440,1779000654000,-2338.29116373,0.00040412,60]
[422501444,1779000654000,-1266.93834914,0.00040412,120]
[422501445,1779000654000,-2289.32100184,0.00040412,120]
[422501438,1779000654000,-196.039594,0.00040412,120]
[422501443,1779000654000,-1951.9322478,0.00040412,7]
[422501446,1779000654000,-602.17775077,0.00040412,120]
[422501450,1779000654000,-1000.0,0.00040412,120]
[422501441,1779000654000,-52339.04407287,0.00040412,2]
[422501447,1779000654000,-4462.573155,0.00040412,2]
[422501448,1779000654000,-394.989736,0.00040412,2]
[422501462,1779000654000,-1000.0,0.00040412,120]
[422501451,1779000654000,-1000.0,0.00040412,120]
[422501455,1779000654000,-1000.0,0.00040412,120]
[422501453,1779000654000,-1000.0,0.00040412,120]
[422501461,1779000654000,-1000.0,0.00040412,120]
[422501454,1779000654000,-1000.0,0.00040412,120]
[422501459,1779000654000,-1000.0,0.00040412,120]
[422501460,1779000654000,-1000.0,0.00040412,120]
[422501458,1779000654000,-1000.0,0.00040412,120]
[422501456,1779000654000,-1000.0,0.00040412,120]
[422501457,1779000654000,-1000.0,0.00040412,120]
[422501439,1779000654000,-5000.0,0.00040412,120]
[422501463,1779000654000,-762.98,0.00040412,120]
[422501452,1779000654000,-1000.0,0.00040412,120]
[422501437,1779000654000,-157.33432763,0.00040412,120]
[422501411,1779000654000,-359.9702429,0.00040412,120]
[422501434,1779000654000,-643.39630996,0.00040412,30]
[422501473,1779000654000,-159.10976001,0.00040412,120]
[422501408,1779000654000,-1262.54576193,0.00040412,5]
[422501412,1779000654000,-211.27908477,0.00040412,120]
[422501413,1779000654000,-398.57725393,0.00040412,49]
[422501414,1779000654000,-4315.8761052,0.00040412,30]
[422501410,1779000654000,-150.39382266,0.00040412,120]
[422501409,1779000654000,-205.25463468,0.00040412,30]
[422501416,1779000654000,-588.38492546,0.00040412,30]
[422501417,1779000654000,-260.98844327,0.00040412,30]
[422501415,1779000654000,-1516.22061832,0.00040412,30]
[422501418,1779000654000,-397.61359266,0.00040412,30]
[422501420,1779000654000,-158.04992265,0.00040412,120]
[422501436,1779000654000,-1162.3166985,0.00040412,10]
[422501422,1779000654000,-1332.36263324,0.00040412,30]
[422501427,1779000654000,-410.18357615,0.00040412,30]
[422501426,1779000654000,-163.18840191,0.00040412,31]
[422501423,1779000654000,-1940.36602258,0.00040412,30]
[422501425,1779000654000,-513.09396624,0.00040412,49]
[422501424,1779000654000,-12356.52195783,0.00040412,120]
[422501419,1779000654000,-405.17182568,0.00040412,120]
[422501428,1779000654000,-1999.3433663,0.00040412,30]
[422501430,1779000654000,-550.76731729,0.00040412,30]
[422501429,1779000654000,-935.88357377,0.00040412,30]
[422501433,1779000654000,-1211.7625465,0.00040412,60]
[422501431,1779000654000,-4740.7122479,0.00040412,30]
[422501432,1779000654000,-444.37873786,0.00040412,120]
[422501421,1779000654000,-508.58080004,0.00040412,120]
[422501468,1779000654000,-159.10976002,0.00040412,120]
[422501442,1779000654000,-206.15884536,0.00040412,30]
[422501465,1779000654000,-1051.0,0.00040412,30]
[422501492,1779000654000,-150.0,0.00040412,120]
[422501501,1779000654000,-150.0,0.00040412,120]
[422501500,1779000654000,-150.0,0.00040412,120]
[422501504,1779000654000,-167.0,0.00040416,120]
[422501502,1779000654000,-2000.0,0.00040416,120]
[422501508,1779000654000,-570.0,0.00040416,120]
[422501507,1779000654000,-508.0,0.00040416,120]
[422501503,1779000654000,-495.69948996,0.00040416,120]
[422501511,1779000654000,-2313.0,0.0004046,11]
[422501510,1779000654000,-154.0,0.00040416,120]
[422501512,1779000654000,-6616.71663098,0.0004049,120]
[422501509,1779000654000,-154.0,0.00040416,120]
[422501494,1779000654000,-150.0,0.00040412,120]
[422501505,1779000654000,-161.0,0.00040416,120]
[422501524,1779000654000,-153.0,0.000407,120]
[422501514,1779000654000,-150.8036404,0.00040518,120]
[422501513,1779000654000,-2005.95557271,0.00040517,30]
[422501518,1779000654000,-183.81059483,0.00040548,120]
[422501516,1779000654000,-160.55658274,0.00040518,120]
[422501521,1779000654000,-500.0,0.0004059,120]
[422501517,1779000654000,-947.73675151,0.00040518,120]
[422501520,1779000654000,-40984.0,0.00040554,120]
[422501522,1779000654000,-1895.58713876,0.0004063,2]
[422501519,1779000654000,-161.4928877,0.00040548,2]
[422501515,1779000654000,-150.80364039,0.00040518,120]
[422501523,1779000654000,-350.0,0.00040685,5]
[422501506,1779000654000,-151.0,0.00040416,120]
[422501496,1779000654000,-150.0,0.00040412,120]
[422501471,1779000654000,-159.10976002,0.00040412,120]
[422501495,1779000654000,-150.0,0.00040412,120]
[422501497,1779000654000,-150.0,0.00040412,120]
[422501466,1779000654000,-159.10976002,0.00040412,120]
[422501467,1779000654000,-159.10976002,0.00040412,120]
[422501464,1779000654000,-3034.0,0.00040412,30]
[422501472,1779000654000,-159.10976002,0.00040412,120]
[422501469,1779000654000,-159.10976002,0.00040412,120]
[422501470,1779000654000,-159.10976002,0.00040412,120]
[422501475,1779000654000,-425.67,0.00040412,120]
[422501474,1779000654000,-5000.0,0.00040412,120]
[422501486,1779000654000,-150.0,0.00040412,120]
[422501484,1779000654000,-150.0,0.00040412,120]
[422501481,1779000654000,-150.0,0.00040412,120]
[422501483,1779000654000,-150.0,0.00040412,120]
[422501485,1779000654000,-150.0,0.00040412,120]
[422501479,1779000654000,-690.74,0.00040412,120]
[422501476,1779000654000,-128319.13,0.00040412,120]
[422501493,1779000654000,-150.0,0.00040412,120]
[422501491,1779000654000,-150.0,0.00040412,120]
[422501498,1779000654000,-150.0,0.00040412,120]
[422501489,1779000654000,-150.0,0.00040412,120]
[422501487,1779000654000,-150.0,0.00040412,120]
[422501499,1779000654000,-150.0,0.00040412,120]
[422501490,1779000654000,-150.0,0.00040412,120]
[422501480,1779000654000,-163.05696925,0.00040412,120]
[422501478,1779000654000,-167.385,0.00040412,2]
[422501482,1779000654000,-150.0,0.00040412,120]
[422501477,1779000654000,-6393.0,0.00040412,120]
[422501488,1779000654000,-150.0,0.00040412,120]
[422501532,1779000655000,-160.0,0.000408,53]
[422501536,1779000655000,-2312.0,0.00040894,11]
[422501533,1779000655000,-40984.0,0.00040804,120]
[422501535,1779000655000,-310.63826533,0.00040885,2]
[422501528,1779000655000,-150.8036404,0.00040792,120]
[422501537,1779000655000,-100499.10483218,0.000409,15]
[422501526,1779000655000,-1895.58713876,0.00040755,2]
[422501529,1779000655000,-947.73675151,0.00040792,120]
[422501527,1779000655000,-56308.0,0.0004079,120]
[422501525,1779000655000,-200.0,0.0004071,30]
[422501534,1779000655000,-2107.96,0.00040826,2]
[422501530,1779000655000,-1895.58713876,0.00040798,2]
[422501531,1779000655000,-20062.67750457,0.000408,30]
[422501538,1779000655000,-200.0,0.000409,17]
[422501541,1779000655000,-200.0,0.000409,14]
[422501551,1779000655000,-1922.86,0.0002901,2]
[422501552,1779000655000,-231.74993805,0.00041,10]
[422501550,1779000655000,-14696.02886038,0.00041,10]
[422501545,1779000655000,-1447.0,0.00040927,11]
[422501540,1779000655000,-313.54230076,0.000409,2]
[422501539,1779000655000,-396.3,0.000409,120]
[422501549,1779000655000,-58020.50665431,0.00041,5]
[422501546,1779000655000,-310.63826533,0.00040975,2]
[422501547,1779000655000,-152.31,0.0004098,120]
[422501544,1779000655000,-2144.0,0.00040926,11]
[422501542,1779000655000,-304.18085496,0.00040901,7]
[422501543,1779000655000,-1895.58713876,0.00040919,2]
[422501548,1779000655000,-1377.06946853,0.00040996,28]
[422501553,1779000655000,-6082.5321095,0.00041,10]
[422501554,1779000724000,151.0,0.00015765,2]
[422501559,1779000837000,-500.0,0.00040412,120]
[422501558,1779000837000,-246.09296289,0.00040412,120]
[422501560,1779000881000,162.39,0.00024882,120]
[422501561,1779000985000,248.0,0.0002,2]
[422501562,1779000987000,248.0,0.00021,2]
[422501563,1779001032000,303.0,0.0002,2]
[422501564,1779001033000,303.0,0.00021,2]
[422501566,1779001180000,169.0,0.0002,2]
[422501567,1779001181000,169.0,0.00021,2]
[422501568,1779001320000,10000.01,0.00010699,2]
[422501569,1779001320000,234.71291341,0.00010699,2]
[422501572,1779001346000,7079.0099119,0.0002,2]
[422501573,1779001347000,1553.33838876,0.0002,2]
[422501574,1779001348000,178.7376388,0.0002,2]
[422501577,1779001363000,159.0,0.0002,2]
[422501578,1779001364000,159.0,0.00021,2]
[422501580,1779001412000,3164.37,0.000207,2]
[422501579,1779001412000,1517.64,0.000153,2]
[422501582,1779001413000,10000.01,0.000207,2]
[422501581,1779001413000,1188.92406054,0.000207,2]
[422501585,1779001525000,150.0,0.0001,2]
[422501586,1779001657000,500.0,0.00029004,120]
[422501587,1779001657000,500.0,0.00029004,120]
[422501588,1779001658000,500.0,0.00029004,120]
[422501593,1779001817000,-340.543442,0.0001393,2]
[422501595,1779001817000,-2500.0,0.00014491,2]
[422501594,1779001817000,-250.0,0.00014,2]
[422501596,1779001817000,-900.0,0.000145,5]
[422501598,1779001817000,-1200.0,0.00014675,2]
[422501597,1779001817000,-1800.0,0.000146,5]
[422501600,1779001817000,-500.0,0.00014676,2]
[422501599,1779001817000,-1297.12,0.00014676,2]
[422501601,1779001817000,-271.0,0.00014699,2]
[422501604,1779001817000,-177.30385238,0.000148,2]
[422501605,1779001817000,-20005.85,0.000148,2]
[422501603,1779001817000,-188.75467981,0.000148,2]
[422501602,1779001817000,-2800.0,0.000147,5]
[422501606,1779001817000,-1166.22,0.000148,2]
[422501607,1779001817000,-3700.0,0.000148,5]
[422501617,1779001817000,-7503.17090513,0.000149,2]
[422501618,1779001817000,-338.33324233,0.000149,2]
[422501615,1779001817000,-175.68466802,0.000149,2]
[422501616,1779001817000,-10935.58511844,0.000149,2]
[422501613,1779001817000,-129516.12911379,0.000149,2]
[422501611,1779001817000,-957.0411062,0.000149,2]
[422501612,1779001817000,-177.30385237,0.000149,2]
[422501609,1779001817000,-2521.72,0.00014899,2]
[422501610,1779001817000,-177.62979401,0.000149,2]
[422501608,1779001817000,-150.0,0.00014899,2]
[422501614,1779001817000,-4600.0,0.000149,5]
[422501639,1779001818000,-500.0,0.00014999,2]
[422501640,1779001818000,-500.0,0.00014999,2]
[422501636,1779001818000,-500.0,0.00014999,2]
[422501638,1779001818000,-500.0,0.00014999,2]
[422501637,1779001818000,-157.56966324,0.00014999,2]
[422501635,1779001818000,-500.0,0.00014999,2]
[422501634,1779001818000,-500.0,0.00014999,2]
[422501633,1779001818000,-500.0,0.00014999,2]
[422501631,1779001818000,-500.0,0.00014999,2]
[422501632,1779001818000,-500.0,0.00014999,2]
[422501628,1779001818000,-500.0,0.00014999,2]
[422501630,1779001818000,-500.0,0.00014999,2]
[422501627,1779001818000,-500.0,0.00014999,2]
[422501626,1779001818000,-1538.11181674,0.0001499,2]
[422501625,1779001818000,-1538.11181674,0.0001499,2]
[422501622,1779001818000,-269.35,0.00014985,2]
[422501623,1779001818000,-271.25,0.00014985,2]
[422501621,1779001818000,-153.12137068,0.00014925,2]
[422501620,1779001818000,-1007.91425452,0.000149,2]
[422501619,1779001818000,-8331.27028469,0.000149,2]
[422501629,1779001818000,-313.15735327,0.00014999,2]
[422501624,1779001818000,-168.28,0.00014985,2]
[422501642,1779001818000,-500.0,0.00014999,2]
[422501644,1779001818000,-500.0,0.00014999,2]
[422501641,1779001818000,-500.0,0.00014999,2]
[422501661,1779001818000,-561.52398225,0.00014999,2]
[422501662,1779001818000,-561.52398225,0.00014999,2]
[422501659,1779001818000,-561.52398225,0.00014999,2]
[422501660,1779001818000,-561.52398225,0.00014999,2]
[422501658,1779001818000,-561.52398225,0.00014999,2]
[422501657,1779001818000,-561.52398225,0.00014999,2]
[422501656,1779001818000,-561.52398225,0.00014999,2]
[422501654,1779001818000,-561.52398225,0.00014999,2]
[422501655,1779001818000,-561.52398225,0.00014999,2]
[422501663,1779001818000,-561.52398225,0.00014999,2]
[422501653,1779001818000,-561.52398225,0.00014999,2]
[422501652,1779001818000,-561.52398225,0.00014999,2]
[422501646,1779001818000,-224.91480805,0.00014999,2]
[422501647,1779001818000,-500.0,0.00014999,2]
[422501645,1779001818000,-500.0,0.00014999,2]
[422501643,1779001818000,-500.0,0.00014999,2]
[422501649,1779001818000,-460.29876427,0.00014999,2]
[422501651,1779001818000,-561.52398225,0.00014999,2]
[422501650,1779001818000,-561.52398225,0.00014999,2]
[422501648,1779001818000,-500.0,0.00014999,2]
[422501681,1779001819000,-561.52398225,0.00014999,2]
[422501674,1779001819000,-561.52398225,0.00014999,2]
[422501680,1779001819000,-561.52398225,0.00014999,2]
[422501679,1779001819000,-561.52398225,0.00014999,2]
[422501678,1779001819000,-561.52398225,0.00014999,2]
[422501676,1779001819000,-561.52398225,0.00014999,2]
[422501677,1779001819000,-561.52398225,0.00014999,2]
[422501675,1779001819000,-561.52398225,0.00014999,2]
[422501672,1779001819000,-561.52398225,0.00014999,2]
[422501668,1779001819000,-561.52398225,0.00014999,2]
[422501673,1779001819000,-561.52398225,0.00014999,2]
[422501670,1779001819000,-561.52398225,0.00014999,2]
[422501669,1779001819000,-561.52398225,0.00014999,2]
[422501667,1779001819000,-561.52398225,0.00014999,2]
[422501665,1779001819000,-561.52398225,0.00014999,2]
[422501666,1779001819000,-561.52398225,0.00014999,2]
[422501664,1779001819000,-561.52398225,0.00014999,2]
[422501682,1779001819000,-561.52398225,0.00014999,2]
[422501671,1779001819000,-561.52398225,0.00014999,2]
[422501683,1779001819000,-561.52398225,0.00014999,2]
[422501686,1779001819000,-561.52398225,0.00014999,2]
[422501699,1779001819000,-561.52398225,0.00014999,2]
[422501684,1779001819000,-561.52398225,0.00014999,2]
[422501704,1779001819000,-559.98588269,0.00014999,2]
[422501701,1779001819000,-561.52398225,0.00014999,2]
[422501703,1779001819000,-559.98588269,0.00014999,2]
[422501702,1779001819000,-538.46960263,0.00014999,2]
[422501700,1779001819000,-561.52398225,0.00014999,2]
[422501698,1779001819000,-561.52398225,0.00014999,2]
[422501697,1779001819000,-561.52398225,0.00014999,2]
[422501695,1779001819000,-561.52398225,0.00014999,2]
[422501696,1779001819000,-561.52398225,0.00014999,2]
[422501693,1779001819000,-561.52398225,0.00014999,2]
[422501692,1779001819000,-561.52398225,0.00014999,2]
[422501691,1779001819000,-561.52398225,0.00014999,2]
[422501690,1779001819000,-561.52398225,0.00014999,2]
[422501689,1779001819000,-561.52398225,0.00014999,2]
[422501688,1779001819000,-561.52398225,0.00014999,2]
[422501687,1779001819000,-561.52398225,0.00014999,2]
[422501685,1779001819000,-561.52398225,0.00014999,2]
[422501694,1779001819000,-561.52398225,0.00014999,2]
[422501705,1779001819000,-559.98588269,0.00014999,2]
[422501721,1779001820000,-559.98588269,0.00014999,2]
[422501718,1779001820000,-559.98588269,0.00014999,2]
[422501719,1779001820000,-559.98588269,0.00014999,2]
[422501724,1779001820000,-559.98588269,0.00014999,2]
[422501722,1779001820000,-559.98588269,0.00014999,2]
[422501723,1779001820000,-559.98588269,0.00014999,2]
[422501717,1779001820000,-275.48253923,0.00014999,2]
[422501720,1779001820000,-559.98588269,0.00014999,2]
[422501716,1779001820000,-559.98588269,0.00014999,2]
[422501707,1779001820000,-559.98588269,0.00014999,2]
[422501713,1779001820000,-559.98588269,0.00014999,2]
[422501714,1779001820000,-559.98588269,0.00014999,2]
[422501712,1779001820000,-559.98588269,0.00014999,2]
[422501709,1779001820000,-559.98588269,0.00014999,2]
[422501711,1779001820000,-559.98588269,0.00014999,2]
[422501710,1779001820000,-559.98588269,0.00014999,2]
[422501708,1779001820000,-559.98588269,0.00014999,2]
[422501706,1779001820000,-559.98588269,0.00014999,2]
[422501715,1779001820000,-500.0,0.00014999,2]
[422501725,1779001820000,-559.98588269,0.00014999,2]
[422501731,1779001820000,-559.98588269,0.00014999,2]
[422501727,1779001820000,-559.98588269,0.00014999,2]
[422501726,1779001820000,-559.98588269,0.00014999,2]
[422501747,1779001820000,-184.98998173,0.00014999,2]
[422501745,1779001820000,-643.31921605,0.00014999,2]
[422501746,1779001820000,-643.31921605,0.00014999,2]
[422501744,1779001820000,-643.31921605,0.00014999,2]
[422501743,1779001820000,-643.31921605,0.00014999,2]
[422501741,1779001820000,-643.31921605,0.00014999,2]
[422501742,1779001820000,-643.31921605,0.00014999,2]
[422501739,1779001820000,-469.48941969,0.00014999,2]
[422501740,1779001820000,-500.0,0.00014999,2]
[422501737,1779001820000,-500.0,0.00014999,2]
[422501736,1779001820000,-500.0,0.00014999,2]
[422501734,1779001820000,-559.98588269,0.00014999,2]
[422501735,1779001820000,-500.0,0.00014999,2]
[422501733,1779001820000,-559.98588269,0.00014999,2]
[422501732,1779001820000,-559.98588269,0.00014999,2]
[422501730,1779001820000,-559.98588269,0.00014999,2]
[422501728,1779001820000,-559.98588269,0.00014999,2]
[422501729,1779001820000,-559.98588269,0.00014999,2]
[422501738,1779001820000,-500.0,0.00014999,2]
[422501750,1779001821000,-165.0,0.00014999,2]
[422501748,1779001821000,-165.0,0.00014999,2]
[422501749,1779001821000,-165.0,0.00014999,2]
[422501751,1779001821000,-309.83370885,0.00014999,2]
[422501756,1779001821000,-300.0,0.00014999,2]
[422501752,1779001821000,-300.0,0.00014999,2]
[422501754,1779001821000,-300.0,0.00014999,2]
[422501755,1779001821000,-690.56488704,0.00014999,2]
[422501757,1779001821000,-655894.69110015,0.00015,2]
[422501753,1779001821000,-300.0,0.00014999,2]
[422501768,1779001831000,-500.0,0.00014999,2]
[422501767,1779001831000,-500.0,0.00014999,2]
[422501765,1779001831000,-500.0,0.00014999,2]
[422501766,1779001831000,-500.0,0.00014999,2]
[422501762,1779001831000,-95.59143978,0.00014999,2]
[422501763,1779001831000,-404.40856022,0.00014999,2]
[422501760,1779001831000,-500.0,0.00014999,2]
[422501761,1779001831000,-500.0,0.00014999,2]
[422501759,1779001831000,-413.83488601,0.00014999,2]
[422501771,1779001831000,-500.0,0.00014999,2]
[422501764,1779001831000,-500.0,0.00014999,2]
[422501770,1779001831000,-500.0,0.00014999,2]
[422501777,1779001831000,-500.0,0.00014999,2]
[422501773,1779001831000,-500.0,0.00014999,2]
[422501774,1779001831000,-500.0,0.00014999,2]
[422501784,1779001831000,-3196.4,0.00015,2]
[422501781,1779001831000,-599.30213,0.00015,2]
[422501782,1779001831000,-673.90711308,0.00015,2]
[422501780,1779001831000,-102877.74803256,0.00015,2]
[422501783,1779001831000,-330.42577765,0.00015,2]
[422501778,1779001831000,-500.0,0.00014999,2]
[422501775,1779001831000,-500.0,0.00014999,2]
[422501776,1779001831000,-500.0,0.00014999,2]
[422501769,1779001831000,-500.0,0.00014999,2]
[422501772,1779001831000,-500.0,0.00014999,2]
[422501779,1779001831000,-500.0,0.00014999,2]
[422501809,1779001837000,-250.0,0.000154,2]
[422501814,1779001837000,-2270.40998677,0.00015807,2]
[422501811,1779001837000,-205.89,0.00015488,2]
[422501810,1779001837000,-7774.39,0.00015412,2]
[422501808,1779001837000,-300.0,0.000154,2]
[422501806,1779001837000,-250.0,0.00015323,2]
[422501807,1779001837000,-150.0,0.00015343,2]
[422501798,1779001837000,-4683645.5482158,0.00015,2]
[422501804,1779001837000,-184.1,0.00015,2]
[422501802,1779001837000,-165.0,0.00015,2]
[422501803,1779001837000,-184.1,0.00015,2]
[422501801,1779001837000,-165.0,0.00015,2]
[422501800,1779001837000,-358.44,0.00015,2]
[422501799,1779001837000,-427.90238331,0.00015,2]
[422501812,1779001837000,-1237.39722377,0.000155,2]
[422501805,1779001837000,-500.0,0.00015273,2]
[422501815,1779001837000,-500.0,0.00015821,2]
[422501813,1779001837000,-500.0,0.00015547,2]
[422501818,1779001837000,-300.0,0.00016,2]
[422501816,1779001837000,-771.92,0.00015868,2]
[422501833,1779001837000,-300.0,0.00016499,2]
[422501831,1779001837000,-1538.11181674,0.0001649,2]
[422501830,1779001837000,-8331.27028465,0.00016471,2]
[422501829,1779001837000,-237.43,0.00016438,2]
[422501827,1779001837000,-200.0,0.0001634,2]
[422501828,1779001837000,-500.0,0.00016369,2]
[422501826,1779001837000,-197.07125807,0.00016302,21]
[422501832,1779001837000,-300.0,0.00016499,2]
[422501824,1779001837000,-348.11955944,0.000162,2]
[422501821,1779001837000,-500.0,0.00016095,2]
[422501823,1779001837000,-1680.0,0.00016143,2]
[422501822,1779001837000,-348.11955944,0.000161,2]
[422501820,1779001837000,-255.0,0.00016031,2]
[422501834,1779001837000,-300.0,0.00016499,2]
[422501817,1779001837000,-267.0,0.00015879,2]
[422501819,1779001837000,-348.11955944,0.00016,2]
[422501825,1779001837000,-1000.0,0.00016286,2]
[422501879,1779001838000,-500.0,0.00017808,2]
[422501880,1779001838000,-500.0,0.00017808,2]
[422501878,1779001838000,-500.0,0.00017808,2]
[422501877,1779001838000,-500.0,0.00017808,2]
[422501876,1779001838000,-500.0,0.00017808,2]
[422501874,1779001838000,-500.0,0.00017808,2]
[422501875,1779001838000,-500.0,0.00017808,2]